bitfinex-derivatives/quotes_ETHF0:USTF0_20250105
["timestamp","ask_amount","ask_price","bid_price","bid_amount"]
[1736061507625,1.42627886,3634.7,3634.6,6.47992036]
[1736061508128,1.42627886,3634.7,3634.6,4.76849024]
[1736061509122,1.42627886,3634.7,3634.6,5.04369024]
[1736061509525,1.42627886,3634.7,3634.6,5.45569024]
[1736061512030,0.99887886,3634.9,3634.6,5.18049024]
[1736061512216,0.99887886,3634.9,3634.7,0.4337]
[1736061512628,0.99887886,3634.9,3634.8,0.27518]
[1736061513427,0.99887886,3634.9,3634.8,5.04367024]
[1736061514427,1.85597886,3635.1,3635.0,0.27517]
[1736061514634,1.85597886,3635.1,3634.8,5.04367024]
[1736061514830,0.99887886,3634.9,3634.8,11.52433963]
[1736061515025,0.99887886,3634.9,3634.8,11.24915963]
[1736061515929,0.99887886,3634.9,3634.8,5.04367024]
[1736061516929,0.99887886,3634.9,3634.8,4.76849024]
[1736061517134,0.99887886,3634.9,3634.8,5.04367024]
[1736061519434,0.99887886,3634.9,3634.8,4.76849024]
[1736061519836,0.99887886,3634.9,3634.8,5.04367024]
[1736061521628,0.99887886,3634.9,3634.8,13.69038886]
[1736061522933,0.99887886,3634.9,3634.8,13.41520886]
[1736061523647,1.27404886,3634.9,3634.8,13.41520886]
[1736061524463,1.27404886,3634.9,3634.8,4.76849024]
[1736061526239,4.48184886,3634.9,3634.8,4.76849024]
[1736061527440,4.48184886,3634.9,3634.6,6.49157039]
[1736061527441,0.27519,3634.7,3634.6,6.49157039]
[1736061527637,1.27406886,3634.7,3634.6,6.49157039]
[1736061528848,1.27406886,3634.7,3634.5,6.49157039]
[1736061529142,1.86957886,3634.6,3634.5,6.49157039]
[1736061529346,2.14477886,3634.6,3634.5,6.49157039]
[1736061530242,2.14477886,3634.6,3634.5,4.7775334]
[1736061531235,2.14477886,3634.6,3634.5,11.26910379]
[1736061533947,2.14477886,3634.6,3634.5,4.7775334]
[1736061543145,0.27521,3634.4,3634.3,6.90557039]
[1736061544462,0.27521,3634.4,3634.3,11.68232355]
[1736061544463,3.33496772,3634.4,3634.3,11.68232355]
[1736061544655,3.33496772,3634.4,3634.3,11.26832355]
[1736061546267,0.27523,3634.2,3634.1,6.49157039]
[1736061546457,1.27410886,3634.2,3634.1,6.49157039]
[1736061547955,1.27410886,3634.2,3634.1,4.77612322]
[1736061550560,0.27524,3634.1,3634.0,6.92857039]
[1736061551458,0.27524,3634.1,3634.0,6.49157039]
[1736061551694,4.37284,3634.1,3634.0,9.38035036]
[1736061552853,4.37284,3634.1,3633.4,9.07401862]
[1736061552854,0.27528,3633.5,3633.4,9.07401862]
[1736061553560,0.69238,3633.5,3633.4,9.07401862]
[1736061553757,1.13438,3633.5,3633.4,9.07401862]
[1736061553959,1.13438,3633.5,3633.4,5.15433365]
[1736061553960,2.13325886,3633.5,3633.4,5.15433365]
[1736061555061,2.13325886,3633.5,3633.4,0.4273]
[1736061555359,1.85797886,3633.5,3633.1,8.64671862]
[1736061555553,0.2753,3633.2,3633.1,8.64671862]
[1736061555759,0.99887886,3633.3,3633.0,0.4311]
[1736061555955,1.27418886,3633.1,3633.0,0.4311]
[1736061557166,1.27418886,3633.1,3633.0,5.15516902]
[1736061557659,0.99887886,3633.1,3633.0,5.15516902]
[1736061557906,0.27531,3633.2,3633.0,5.15516902]
[1736061558056,0.99887886,3633.1,3633.0,5.15516902]
[1736061560158,1.27418886,3633.1,3633.0,5.15516902]
[1736061560856,0.99887886,3633.1,3633.0,5.15516902]
[1736061561065,0.99887886,3633.3,3633.0,6.42936788]
[1736061563057,0.99887886,3633.3,3633.0,1.70529886]
[1736061563764,0.99887886,3633.3,3633.1,0.27531]
[1736061563965,0.99887886,3633.5,3633.2,0.99887886]
[1736061564263,3.2078,3633.7,3633.6,0.27527]
[1736061564661,0.99887886,3633.9,3633.5,0.8517]
[1736061564866,0.99887886,3633.9,3633.7,0.27526]
[1736061565069,0.99887886,3633.9,3633.8,0.27526]
[1736061565367,0.99887886,3633.9,3633.6,3.6559]
[1736061565562,0.99887886,3633.9,3633.8,0.27526]
[1736061570364,0.99887886,3633.9,3633.8,3.48306]
[1736061571964,2.16104785,3634.1,3634.0,0.27524]
[1736061572976,2.16104785,3634.1,3634.0,1.27411886]
[1736061573176,2.16104785,3634.1,3634.0,6.27411886]
[1736061573875,2.16104785,3634.1,3634.0,1.27411886]
[1736061574474,2.16104785,3634.1,3634.0,0.27524]
[1736061575071,2.16104785,3634.1,3634.0,0.69504]
[1736061577195,2.16104785,3634.1,3634.0,3.90284]
[1736061581293,0.99887886,3634.2,3634.1,0.27524]
[1736061581895,0.99887886,3634.2,3634.1,3.48304]
[1736061582592,0.99887886,3634.2,3634.1,17.65374899]
[1736061583695,0.99887886,3634.2,3634.1,26.29522447]
[1736061586394,0.99887886,3634.2,3634.1,17.65374899]
[1736061587991,0.99887886,3634.2,3634.1,17.37850899]
[1736061588599,0.99887886,3634.2,3634.1,17.65374899]
[1736061589096,0.99887886,3634.2,3634.1,8.20660966]
[1736061589299,0.99887886,3634.2,3634.1,7.93136966]
[1736061589896,0.99887886,3634.2,3634.1,8.20660966]
[1736061590297,0.99887886,3634.2,3634.1,7.93136966]
[1736061590597,0.99887886,3634.2,3634.1,8.20660966]
[1736061592395,0.99887886,3634.2,3634.1,4.72356966]
[1736061593400,0.99887886,3634.2,3634.0,0.27524]
[1736061593700,0.4306,3634.1,3634.0,0.27524]
[1736061596099,0.4306,3634.1,3634.0,4.99787857]
[1736061601517,0.4306,3634.1,3634.0,4.72263857]
[1736061603202,0.4306,3634.1,3633.8,0.27526]
[1736061603506,0.99887886,3633.9,3633.8,0.27526]
[1736061603907,1.40787886,3633.9,3633.8,0.27526]
[1736061604806,1.40787886,3633.9,3633.8,5.00448306]
[1736061605807,1.40787886,3633.9,3633.8,8.21228306]
[1736061606310,1.40787886,3633.9,3633.8,16.85225452]
[1736061608509,0.99887886,3633.9,3633.8,17.26065452]
[1736061608810,0.4306,3634.1,3634.0,0.27524]
[1736061609206,1.42867886,3634.2,3633.8,18.80526132]
[1736061609410,1.42867886,3634.2,3634.1,0.27524]
[1736061610254,1.42867886,3634.2,3634.1,13.65887113]
[1736061610706,1.42867886,3634.2,3634.1,13.38363113]
[1736061610906,1.42867886,3634.2,3634.1,13.65887113]
[1736061611815,1.42867886,3634.2,3634.1,13.38363113]
[1736061614201,1.42867886,3634.2,3634.1,16.59143113]
[1736061615518,1.70390886,3634.2,3634.1,16.59143113]
[1736061617214,3.58972671,3634.2,3634.0,4.32810059]
[1736061617414,1.72241886,3634.1,3634.0,4.32810059]
[1736061618418,3.60822671,3634.1,3633.9,4.32810059]
[1736061618604,0.70244,3634.0,3633.9,4.32810059]
[1736061619916,0.4272,3634.0,3633.8,4.32810059]
[1736061620113,1.27412886,3633.9,3633.8,4.32810059]
[1736061621517,0.27526,3633.8,3633.7,4.32810059]
[1736061622911,0.27527,3633.7,3633.5,4.32810059]
[1736061623107,2.48197886,3633.6,3633.5,4.32810059]
[1736061623719,2.75724886,3633.6,3633.5,4.32810059]
[1736061624622,2.75724886,3633.6,3633.4,4.32810059]
[1736061624915,1.43837886,3633.5,3633.4,4.32810059]
[1736061625116,1.43837886,3633.5,3633.4,4.60339059]
[1736061625921,0.99887886,3633.5,3633.4,4.60339059]
[1736061626417,0.4462,3633.7,3633.4,4.32810059]
[1736061626624,0.99887886,3633.9,3633.6,0.27527]
[1736061626818,0.99887886,3633.9,3633.7,0.70176]
[1736061627019,0.99887886,3633.9,3633.7,0.4265]
[1736061627418,0.99887886,3633.9,3633.7,4.75460059]
[1736061628622,1.27413886,3633.9,3633.7,4.75460059]
[1736061629619,0.99887886,3633.9,3633.7,4.75460059]
[1736061629925,0.99887886,3633.9,3633.7,4.32810059]
[1736061629926,0.27526,3633.8,3633.7,4.32810059]
[1736061630823,0.99887886,3633.9,3633.6,4.32810059]
[1736061631026,4.7122,3634.0,3633.6,4.32810059]
[1736061631027,1.72444886,3633.7,3633.6,4.32810059]
[1736061631225,1.44917886,3633.7,3633.6,4.32810059]
[1736061631827,1.44917886,3633.7,3633.6,4.72693195]
[1736061632825,1.72444886,3633.7,3633.6,4.72693195]
[1736061633326,1.72444886,3633.7,3633.6,11.21908284]
[1736061634427,1.72444886,3633.7,3633.6,4.72693195]
[1736061637128,1.72444886,3633.7,3633.6,4.32543208]
[1736061639223,2.16134886,3633.7,3633.6,4.32543208]
[1736061639529,1.88607886,3633.7,3633.6,4.72884542]
[1736061639828,2.16134886,3633.7,3633.6,4.72884542]
[1736061640827,0.27527,3633.6,3633.5,6.49215089]
[1736061642237,0.27527,3633.6,3633.5,11.22105014]
[1736061647245,0.27527,3633.6,3633.5,4.72889925]
[1736061649940,0.27527,3633.6,3633.5,11.22105014]
[1736061650440,0.99887886,3633.6,3633.5,11.22105014]
[1736061650739,0.99887886,3633.6,3633.5,11.49633014]
[1736061651237,0.99887886,3633.6,3633.5,5.00417925]
[1736061652140,0.99887886,3633.6,3633.5,4.72889925]
[1736061653241,0.99887886,3633.6,3633.5,5.00417925]
[1736061655637,0.99887886,3633.6,3633.5,13.38330732]
[1736061657138,0.99887886,3633.6,3633.5,13.65858732]
[1736061657840,1.059,3633.9,3633.5,13.38330732]
[1736061658042,2.05787886,3633.9,3633.5,22.84773176]
[1736061658243,0.99887886,3633.7,3633.6,0.68607]
[1736061659843,0.99887886,3633.7,3633.6,23.53380176]
[1736061660847,0.99887886,3633.9,3633.7,0.27526]
[1736061661051,0.99887886,3633.9,3633.8,0.4233]
[1736061662036,0.99887886,3633.9,3633.8,13.81713947]
[1736061662747,2.59054785,3634.0,3633.8,13.81713947]
[1736061662748,2.16104785,3634.0,3633.8,13.81713947]
[1736061662960,3.15992671,3634.0,3633.8,14.09238947]
[1736061663151,3.15992671,3634.0,3633.8,13.81713947]
[1736061663853,0.27525,3633.9,3633.8,13.81713947]
[1736061664550,0.27525,3633.9,3633.8,13.39383947]
[1736061664752,2.43629785,3633.9,3633.8,4.72889925]
[1736061666045,3.51512009,3633.9,3633.8,11.22784839]
[1736061667455,3.51512009,3633.9,3633.8,4.72889925]
[1736061668553,0.99887886,3634.0,3633.8,4.3329211]
[1736061668755,0.27525,3633.9,3633.8,4.3329211]
[1736061672260,0.27525,3633.9,3633.8,4.73692736]
[1736061676407,2.43661782,3633.9,3633.8,4.73692736]
[1736061677556,0.27525,3633.9,3633.8,4.73692736]
[1736061680461,0.27525,3633.9,3633.8,5.16162736]
[1736061681351,0.27525,3633.9,3633.8,5.60792736]
[1736061681560,2.43663636,3633.9,3633.8,5.60792736]
[1736061683265,2.16138636,3633.9,3633.8,5.60792736]
[1736061683970,2.16138636,3633.9,3633.8,14.27286758]
[1736061685367,3.43551522,3634.0,3633.8,14.27286758]
[1736061686272,3.16026522,3634.0,3633.8,14.27286758]
[1736061686567,3.16026522,3634.0,3633.9,4.73692736]
[1736061686568,3.43550522,3634.0,3633.9,4.73692736]
[1736061687962,3.16026522,3634.0,3633.9,4.73692736]
[1736061692075,0.99887886,3634.0,3633.9,22.87307193]
[1736061692769,1.27411886,3634.0,3633.9,22.87307193]
[1736061693470,1.27411886,3634.0,3633.9,13.40186758]
[1736061698768,1.27411886,3634.0,3633.9,4.73692736]
[1736061700468,3.43550522,3634.0,3633.9,11.2340904]
[1736061701776,3.43550522,3634.0,3633.9,4.73692736]
[1736061702986,1.27411886,3634.0,3633.9,4.73692736]
[1736061703580,0.27524,3634.0,3633.9,4.73692736]
[1736061704278,0.27524,3634.0,3633.9,22.87162001]
[1736061705587,0.27524,3634.0,3633.9,13.40186758]
[1736061707987,0.27524,3634.0,3633.9,4.73692736]
[1736061708391,0.68474,3634.0,3633.9,4.73692736]
[1736061710385,2.84612636,3634.0,3633.9,11.23348292]
[1736061714888,3.92679173,3634.0,3633.9,4.33155247]
[1736061715890,0.68474,3634.0,3633.9,4.33155247]
[1736061716089,0.27525,3633.9,3633.8,4.33155247]
[1736061716298,2.14812886,3633.9,3633.8,4.33155247]
[1736061717397,5.39070754,3633.9,3633.8,4.73569648]
[1736061721603,2.14812886,3633.9,3633.8,11.23225204]
[1736061723705,4.31012076,3633.9,3633.8,4.73569648]
[1736061725005,2.14812886,3633.9,3633.8,13.4006367]
[1736061725699,2.1619919,3634.0,3633.8,14.67476556]
[1736061725906,2.1619919,3634.0,3633.9,1.09315]
[1736061726611,2.1619919,3634.0,3633.9,14.4937867]
[1736061726801,2.1619919,3634.1,3633.9,14.4937867]
[1736061727001,2.1619919,3634.1,3634.0,1.27411886]
[1736061727209,2.1619919,3634.1,3634.0,0.99887886]
[1736061727804,0.27522,3634.3,3634.0,5.73457534]
[1736061728007,0.27522,3634.3,3634.0,15.20492981]
[1736061728205,3.16087076,3634.4,3634.0,15.20492981]
[1736061728412,3.43609076,3634.4,3634.0,15.20492981]
[1736061728712,2.1619919,3634.4,3634.3,0.27522]
[1736061729006,2.1619919,3634.4,3634.2,1.27409886]
[1736061729210,2.1619919,3634.4,3634.3,6.93475741]
[1736061729510,2.1619919,3634.4,3634.3,10.41777741]
[1736061729810,0.2759919,3634.4,3634.3,10.41777741]
[1736061730410,3.24257868,3634.6,3634.5,0.2752]
[1736061730649,3.24257868,3634.6,3634.5,1.27407886]
[1736061731109,0.99887886,3634.9,3634.5,1.27407886]
[1736061732315,1.27404886,3634.9,3634.5,1.27407886]
[1736061732611,1.27404886,3634.9,3634.7,6.48903846]
[1736061733814,1.27404886,3634.9,3634.8,4.32498514]
[1736061734110,0.99887886,3634.9,3634.8,4.32498514]
[1736061735407,1.27404886,3634.9,3634.8,4.32498514]
[1736061735815,0.99887886,3634.9,3634.8,4.32498514]
[1736061736215,0.99887886,3634.9,3634.7,4.32498514]
[1736061736717,0.99887886,3634.9,3634.8,0.4468]
[1736061737314,0.99887886,3634.9,3634.8,5.21854667]
[1736061738915,0.99887886,3635.1,3634.8,4.76760457]
[1736061739115,0.4414,3635.2,3634.8,4.76760457]
[1736061739311,1.44027886,3635.2,3634.9,1.41987886]
[1736061739506,1.71543886,3635.2,3634.9,1.41987886]
[1736061739819,1.71543886,3635.2,3634.9,0.421]
[1736061740417,1.71543886,3635.2,3634.9,4.74180457]
[1736061741317,1.27404886,3635.0,3634.9,4.74180457]
[1736061741519,1.27404886,3635.0,3634.9,0.421]
[1736061742512,0.99887886,3635.0,3634.9,0.421]
[1736061743519,1.71542886,3635.2,3634.9,0.421]
[1736061743908,1.44027886,3635.2,3634.9,0.421]
[1736061744113,0.99887886,3635.0,3634.9,0.421]
[1736061744416,1.27404886,3635.0,3634.9,0.421]
[1736061751124,0.99887886,3635.0,3634.9,0.421]
[1736061753021,0.4414,3635.2,3634.9,0.421]
[1736061753022,1.71542886,3635.2,3634.9,0.421]
[1736061753724,0.99887886,3635.0,3634.9,0.69617]
[1736061756924,0.99887886,3635.0,3634.9,0.421]
[1736061757520,0.99887886,3635.0,3634.9,0.69617]
[1736061758615,0.4414,3635.2,3634.9,0.421]
[1736061758821,0.4191,3635.3,3635.1,3.2078]
[1736061759026,0.4191,3635.3,3635.2,1.27402886]
[1736061760623,0.4351,3635.5,3635.3,0.27514]
[1736061760823,0.4351,3635.5,3635.2,0.99887886]
[1736061761025,0.4351,3635.5,3635.4,1.27401886]
[1736061763229,0.4351,3635.5,3635.4,1.72431886]
[1736061764332,0.4209,3635.6,3635.4,1.44917886]
[1736061764526,0.4173,3635.8,3635.4,1.88657886]
[1736061764828,0.27509,3636.0,3635.6,1.27399886]
[1736061765026,0.99887886,3636.0,3635.7,0.27511]
[1736061765225,0.8533,3635.9,3635.7,0.27511]
[1736061765429,0.8533,3635.9,3635.4,0.8877]
[1736061765430,0.99887886,3635.8,3635.4,6.20738343]
[1736061765630,0.99887886,3635.8,3635.5,0.27512]
[1736061766032,0.99887886,3635.8,3635.6,0.27512]
[1736061766829,0.99887886,3635.8,3635.5,3.2078]
[1736061767030,0.8533,3635.9,3635.8,0.27511]
[1736061767333,0.8533,3635.9,3635.8,1.27398886]
[1736061767841,0.8533,3635.9,3635.8,0.27511]
[1736061768334,0.8533,3635.9,3635.6,0.99887886]
[1736061768526,0.8533,3635.9,3635.7,0.27511]
[1736061768726,0.8533,3635.9,3635.7,4.59591457]
[1736061768922,0.99887886,3635.8,3635.7,4.32080457]
[1736061770034,0.99887886,3635.8,3635.6,4.59592457]
[1736061770334,0.8533,3635.9,3635.6,4.59592457]
[1736061770937,0.8533,3635.9,3635.6,5.59480343]
[1736061771445,0.8533,3635.9,3635.7,4.32080457]
[1736061772229,0.99887886,3635.8,3635.7,4.32080457]
[1736061772430,1.27398886,3635.8,3635.7,4.32080457]
[1736061772729,0.99887886,3635.8,3635.7,4.32080457]
[1736061773133,0.99887886,3635.8,3635.6,4.32080457]
[1736061774134,0.99887886,3635.8,3635.6,4.59592457]
[1736061776243,0.99887886,3635.8,3635.7,4.32080457]
[1736061784848,0.99887886,3635.8,3635.7,4.59591457]
[1736061785045,0.99887886,3635.8,3635.7,5.04606321]
[1736061790743,0.99887886,3635.8,3635.7,4.77095321]
[1736061791146,0.99887886,3635.8,3635.7,11.25999167]
[1736061791848,0.99887886,3635.8,3635.7,4.77095321]
[1736061793149,0.99887886,3635.8,3635.7,5.04606321]
[1736061793347,0.99887886,3635.8,3635.7,11.53510167]
[1736061794845,0.8533,3635.9,3635.8,0.27511]
[1736061796153,0.8533,3635.9,3635.7,5.04606321]
[1736061796353,0.8533,3635.9,3635.8,4.77095321]
[1736061797351,0.8533,3635.9,3635.8,5.04606321]
[1736061797950,0.8533,3635.9,3635.8,11.53287814]
[1736061799752,0.8533,3635.9,3635.8,13.69811449]
[1736061800657,0.8533,3635.9,3635.8,5.04606321]
[1736061803957,1.85217886,3635.9,3635.8,4.77095321]
[1736061804363,2.12727886,3635.9,3635.8,4.77095321]
[1736061804958,2.12727886,3635.9,3635.8,13.42300449]
[1736061808157,2.12727886,3635.9,3635.8,22.97250126]
[1736061809752,1.85217886,3635.9,3635.8,22.97250126]
[1736061810352,0.8533,3635.9,3635.8,23.24761126]
[1736061812650,0.8533,3635.9,3635.8,14.59555998]
[1736061812857,3.24257868,3636.2,3636.1,0.27508]
[1736061814089,0.99887886,3636.3,3636.2,0.27508]
[1736061814260,1.43687886,3636.3,3636.2,0.27508]
[1736061814761,3.24257868,3636.4,3636.3,0.27507]
[1736061814965,3.24257868,3636.4,3636.2,3.6565]
[1736061815264,3.24257868,3636.4,3636.3,1.27394886]
[1736061815461,3.24257868,3636.4,3636.3,1.69784886]
[1736061815963,0.438,3636.6,3636.3,1.69784886]
[1736061816959,1.43687886,3636.6,3636.3,1.69784886]
[1736061817190,1.43687886,3636.6,3636.5,6.49164354]
[1736061817662,0.438,3636.6,3636.5,6.49164354]
[1736061818264,0.438,3636.6,3636.5,11.26259675]
[1736061820461,0.438,3636.6,3636.5,12.53652561]
[1736061820903,0.438,3636.6,3636.5,6.04488207]
[1736061822363,0.4084,3636.7,3636.5,5.76983207]
[1736061822666,0.4084,3636.7,3636.6,0.27505]
[1736061824067,0.4084,3636.7,3636.6,11.53214686]
[1736061825460,0.4084,3636.7,3636.6,5.04600321]
[1736061826460,0.4084,3636.7,3636.6,4.77095321]
[1736061828567,0.4268,3636.9,3636.6,4.77095321]
[1736061828864,0.4268,3636.9,3636.7,0.407]
[1736061829468,0.4268,3636.9,3636.7,0.68204]
[1736061829670,0.4268,3636.9,3636.7,1.11084]
[1736061830071,0.4268,3636.9,3636.7,5.43258072]
[1736061831778,0.4268,3636.9,3636.7,5.15754072]
[1736061832171,0.4268,3636.9,3636.7,0.8358]
[1736061833368,0.99887886,3636.8,3636.7,0.407]
[1736061835473,0.70182,3636.9,3636.7,0.407]
[1736061835671,1.70069886,3636.9,3636.7,0.407]
[1736061836272,1.42567886,3636.9,3636.7,0.407]
[1736061836474,0.27503,3636.8,3636.7,0.407]
[1736061838765,1.42567886,3636.9,3636.7,0.407]
[1736061839001,1.70070886,3636.9,3636.7,0.407]
[1736061839980,0.27503,3636.8,3636.7,0.407]
[1736061841072,0.4268,3636.9,3636.7,0.407]
[1736061841372,0.70183,3636.9,3636.7,0.407]
[1736061842576,0.70183,3636.9,3636.7,4.72874072]
[1736061845380,0.4268,3636.9,3636.7,4.72874072]
[1736061845581,0.70182,3636.9,3636.7,4.72874072]
[1736061845779,0.4268,3636.9,3636.7,4.72874072]
[1736061845981,0.70182,3636.9,3636.7,4.72874072]
[1736061846582,0.4268,3636.9,3636.7,5.00378072]
[1736061846788,0.4268,3636.9,3636.8,0.4289]
[1736061847287,0.424,3637.1,3636.8,0.70393]
[1736061847582,0.69901,3637.1,3636.9,0.99887886]
[1736061847776,0.424,3637.1,3636.9,0.99887886]
[1736061848587,0.69901,3637.1,3636.9,0.99887886]
[1736061848805,0.424,3637.1,3636.9,0.99887886]
[1736061849091,7.44925754,3637.4,3637.1,0.27501]
[1736061849092,3.2078,3637.4,3637.1,0.27501]
[1736061849385,3.2078,3637.4,3637.2,1.85447886]
[1736061850576,3.2078,3637.4,3637.2,2.12947886]
[1736061851184,3.2078,3637.4,3637.2,1.85447886]
[1736061852680,3.48279,3637.4,3637.2,1.85447886]
[1736061853385,3.92939,3637.4,3637.2,1.85447886]
[1736061853783,0.72159,3637.4,3637.2,1.85447886]
[1736061855688,0.72159,3637.4,3637.2,6.17621958]
[1736061856282,0.27499,3637.3,3637.2,4.75964072]
[1736061856482,0.27499,3637.3,3637.2,4.32174072]
[1736061856686,0.69889,3637.3,3637.2,4.32174072]
[1736061858387,0.69889,3637.3,3637.1,4.32174072]
[1736061858593,0.4206,3637.2,3637.1,4.32174072]
[1736061859493,0.4206,3637.2,3637.1,4.62371342]
[1736061864498,0.4206,3637.2,3637.1,4.89872342]
[1736061868195,2.60565939,3637.4,3637.1,5.05291342]
[1736061868400,2.60565939,3637.4,3637.3,0.27499]
[1736061869300,0.4466,3637.4,3637.3,4.59776267]
[1736061872416,0.4466,3637.4,3637.3,0.27499]
[1736061872714,0.4466,3637.4,3637.3,4.8480619]
[1736061873207,0.4466,3637.4,3637.3,4.5730719]
[1736061874414,0.72159,3637.4,3637.3,4.5730719]
[1736061875020,0.4466,3637.4,3637.3,4.5730719]
[1736061875308,0.4466,3637.4,3637.3,4.32247094]
[1736061875709,0.72159,3637.4,3637.3,4.32247094]
[1736061876311,1.72046886,3637.4,3637.3,4.32247094]
[1736061876614,0.275,3637.3,3637.0,4.32247094]
[1736061876805,0.4289,3637.2,3637.0,4.32247094]
[1736061877009,0.4409,3637.1,3637.0,4.32247094]
[1736061877810,0.4409,3637.1,3636.9,7.76004251]
[1736061878018,0.4296,3637.0,3636.9,7.76004251]
[1736061878818,0.4296,3637.0,3636.9,7.48502251]
[1736061879021,0.4296,3637.0,3636.9,12.0595718]
[1736061883619,1.42847886,3637.0,3636.9,11.06069294]
[1736061884628,3.58904008,3637.0,3636.9,4.57454929]
[1736061885122,3.86406008,3637.0,3636.9,4.57454929]
[1736061887526,2.86518122,3637.0,3636.9,4.57454929]
[1736061887829,2.86518122,3637.0,3636.6,9.65440358]
[1736061887830,0.27502,3636.9,3636.7,4.32603071]
[1736061888723,2.43654872,3636.9,3636.8,4.32603071]
[1736061893624,2.16152872,3636.9,3636.8,4.32603071]
[1736061894931,3.59000758,3637.0,3636.8,4.32603071]
[1736061895130,0.27502,3636.9,3636.8,4.32603071]
[1736061897034,3.59000758,3637.0,3636.8,4.32603071]
[1736061897241,3.86502758,3637.0,3636.8,4.32603071]
[1736061899331,0.27502,3636.9,3636.8,4.32603071]
[1736061900935,2.43654872,3636.9,3636.7,4.32603071]
[1736061902843,2.16152872,3636.9,3636.7,4.32603071]
[1736061903239,2.43654872,3636.9,3636.7,4.32603071]
[1736061903442,2.16152872,3636.9,3636.7,4.32603071]
[1736061903637,0.27503,3636.8,3636.7,4.32603071]
[1736061903845,1.27390886,3636.8,3636.7,4.32603071]
[1736061905145,3.43543758,3636.8,3636.6,4.32603071]
[1736061907843,3.43543758,3636.8,3636.5,4.32603071]
[1736061908039,3.16040758,3636.8,3636.5,4.32603071]
[1736061908244,0.99887886,3636.6,3636.5,4.32603071]
[1736061908548,1.27392886,3636.6,3636.5,4.32603071]
[1736061908748,2.12932886,3636.6,3636.5,4.32603071]
[1736061909344,2.12932886,3636.6,3636.4,6.48614365]
[1736061909345,0.27507,3636.3,3636.2,7.53383071]
[1736061909543,1.27394886,3636.3,3636.2,7.53383071]
[1736061910647,1.27394886,3636.3,3636.0,6.48614365]
[1736061910648,0.99887886,3636.3,3636.1,4.32603071]
[1736061910843,0.72008,3636.2,3636.1,4.32603071]
[1736061911846,0.72008,3636.2,3636.0,4.32603071]
[1736061912046,0.4377,3636.1,3636.0,4.32603071]
[1736061914446,0.4377,3636.1,3635.9,5.32490957]
[1736061914643,0.71279,3636.1,3635.9,5.32490957]
[1736061915754,0.4377,3636.1,3635.9,5.32490957]
[1736061924459,0.71279,3636.1,3635.9,5.32490957]
[1736061924756,0.4377,3636.1,3635.9,5.32490957]
[1736061926154,0.4377,3636.1,3636.0,4.32603071]
[1736061930663,0.445,3636.2,3636.0,4.32603071]
[1736061931161,0.445,3636.2,3636.1,0.4107]
[1736061932964,0.445,3636.2,3636.0,4.32603071]
[1736061933361,0.72008,3636.2,3636.0,4.32603071]
[1736061934571,0.445,3636.2,3636.0,4.32603071]
[1736061934761,0.72008,3636.2,3636.0,4.32603071]
[1736061938666,0.27508,3636.1,3636.0,4.32603071]
[1736061938879,0.72008,3636.2,3636.0,4.32603071]
[1736061940465,2.880064,3636.2,3635.9,5.32490957]
[1736061941168,0.27509,3636.0,3635.9,4.32603071]
[1736061941370,1.27396886,3636.1,3635.9,4.32603071]
[1736061941675,1.27396886,3636.1,3636.0,4.32603071]
[1736061944270,3.43395286,3636.1,3636.0,4.32603071]
[1736061945373,1.27396886,3636.1,3636.0,4.32603071]
[1736061946474,3.43395286,3636.1,3636.0,4.57768221]
[1736061947573,3.43395286,3636.1,3635.9,6.48614365]
[1736061950373,3.43395286,3636.1,3636.0,4.57883422]
[1736061951578,1.27396886,3636.1,3636.0,4.57883422]
[1736061951877,1.27396886,3636.1,3636.0,11.06497787]
[1736061952774,4.51626194,3636.1,3636.0,4.57883422]
[1736061954281,1.27396886,3636.1,3636.0,11.06497787]
[1736061958982,2.32996886,3636.1,3636.0,11.06497787]
[1736061961979,5.57547255,3636.1,3636.0,4.57883422]
[1736061970386,3.24550369,3636.1,3636.0,4.57883422]
[1736061970595,3.24550369,3636.1,3636.0,4.85392422]
[1736061970887,3.24550369,3636.1,3636.0,5.30362422]
[1736061971279,3.24550369,3636.1,3636.0,5.02853422]
[1736061971880,3.24550369,3636.1,3636.0,5.30362422]
[1736061972185,2.16352064,3636.2,3636.0,14.46735359]
[1736061972385,2.16352064,3636.2,3636.1,0.27508]
[1736061972788,2.16352064,3636.2,3636.1,1.27395886]
[1736061973783,2.16352064,3636.3,3636.1,15.01652245]
[1736061974087,2.16352064,3636.3,3636.2,0.878]
[1736061975088,2.16352064,3636.3,3636.2,14.1158736]
[1736061976091,2.16352064,3636.4,3636.2,5.45683422]
[1736061976791,2.43858064,3636.4,3636.2,5.45683422]
[1736061977391,2.43858064,3636.4,3636.3,4.57883422]
[1736061978894,2.43858064,3636.4,3636.3,11.07174536]
[1736061983798,2.16352064,3636.4,3636.3,11.07174536]
[1736061986098,2.16352064,3636.5,3636.3,11.07174536]
[1736061986401,2.16352064,3636.5,3636.3,12.34569422]
[1736061987399,2.16352064,3636.5,3636.4,4.57883422]
[1736061989304,2.43857064,3636.6,3636.4,11.07174536]
[1736061990407,0.27505,3636.6,3636.5,4.57883422]
[1736061993420,0.27505,3636.6,3636.5,8.90432685]
[1736061994621,2.43857064,3636.6,3636.4,4.32549263]
[1736061996118,0.27505,3636.6,3636.5,4.32549263]
[1736062003326,3.8524395,3636.7,3636.5,4.32549263]
[1736062003727,2.85356064,3636.7,3636.5,4.32549263]
[1736062003926,2.85356064,3636.7,3636.5,4.57644248]
[1736062005325,2.85356064,3636.7,3636.6,4.32607167]
[1736062009926,3.8524395,3636.7,3636.6,4.32607167]
[1736062011228,3.8524395,3636.7,3636.6,4.57777262]
[1736062012128,2.57852064,3636.7,3636.6,4.57777262]
[1736062012436,2.16352064,3636.7,3636.6,5.28732262]
[1736062012630,2.16352064,3636.7,3636.6,12.64023376]
[1736062014028,5.37132064,3637.0,3636.6,23.68831857]
[1736062014234,5.37132064,3637.0,3636.8,0.27503]
[1736062014827,5.37132064,3637.0,3636.7,0.99887886]
[1736062015035,5.37132064,3637.0,3636.7,1.27391886]
[1736062015433,6.3701995,3637.0,3636.9,4.57777262]
[1736062015630,6.6452195,3637.0,3636.9,4.57777262]
[1736062017132,4.48169886,3637.0,3636.9,4.57777262]
[1736062017932,1.27389886,3637.0,3636.9,4.57777262]
[1736062019472,4.24438255,3637.0,3636.9,4.32745368]
[1736062019640,4.51940255,3637.0,3636.9,4.32745368]
[1736062019837,4.51940255,3637.0,3636.9,3.65145368]
[1736062020539,4.51940255,3637.0,3636.3,6.49118188]
[1736062020540,10.04708762,3637.0,3636.3,6.49118188]
[1736062020733,0.99887886,3636.4,3636.3,6.49118188]
[1736062021140,1.82947886,3636.4,3636.3,6.49118188]